Cogmind - Beta 16 @@@ ROGUE MODE // 2026.02.10 @ 13:07:20 Player: dylanbksp Result: Self-destructed Performance ------------- Evolutions (2) 1000 Regions Visited (5) 1000 Robots Destroyed (21) 105 Value Destroyed (501) 501 Prototype IDs (23) 460 Alien Tech Used (0) 0 Bonus (300) 300 TOTAL SCORE: 3366 Bonus ------- Aligned with FarCom 300 Cogmind --------- Core Integrity 522/550 Matter 225/300 Energy 310/310 System Corruption 2% Temperature Warm (167) Movement Walking (120) Location -8/Materials Parts ------- > --- POWER (2) -------- Ion Engine Light Nuclear Core > --- PROPULSION (3) --- Aluminum Leg Aluminum Leg Carbon-fiber Leg > --- UTILITY (4) ------ Medium Storage Unit ECM Suite Reaction Control System Medium Armor Plating > --- WEAPON (2) ------- Medium Laser Heavy Flail > --- INVENTORY (10) --- Light Ion Engine Propulsion Shielding Utility Shielding Small Laser Small Laser Beam Cannon Assault Rifle Light Assault Rifle Light Assault Rifle Grenade Launcher Peak State ------------ > --- POWER ------------ Ion Engine Light Nuclear Core > --- PROPULSION ------- Aluminum Leg Aluminum Leg Carbon-fiber Leg > --- UTILITY ---------- Medium Storage Unit ECM Suite Reaction Control System Medium Armor Plating > --- WEAPON ----------- Medium Laser Heavy Flail > --- INVENTORY -------- Light Ion Engine Propulsion Shielding Utility Shielding Small Laser Small Laser Beam Cannon Assault Rifle Light Assault Rifle Light Assault Rifle Grenade Launcher [Rating: 21] Favorites ----------- Power Ion Engine Engine Ion Engine Power Core Light Nuclear Core Propulsion Aluminum Leg Leg Aluminum Leg Hover Unit Airjet Utility Medium Storage Unit Device Cloak of Protection Storage Medium Storage Unit Processor Signal Interpreter Protection Medium Armor Plating Weapon Light Assault Rifle Energy Gun Particle Gun Energy Cannon Beam Cannon Ballistic Gun Light Assault Rifle Impact Weapon Heavy Flail Build | -11 -10 -10 -10 -9 -8 ------- Run | Yrd Mat Min Exi Min Mat Slots Evolved 4 | . . . . . 4 Power 1 | . . . . . 1 Propulsion 1 | . . . . . 1 Utility 2 | . . . . . 2 Weapon . | . . . . . . Parts Attached 32 | 6 6 3 1 6 10 Power 5 | 1 1 . . 1 2 Engine 4 | 1 1 . . 1 1 Core 1 | . . . . . 1 Reactor . | . . . . . . Propulsion 7 | 2 . . . 2 3 Treads . | . . . . . . Leg 6 | 2 . . . 2 2 Wheel . | . . . . . . Hover 1 | . . . . . 1 Flight . | . . . . . . Utility 9 | 1 4 . 1 . 3 Device 3 | . . . 1 . 2 Storage 2 | 1 1 . . . . Processor 1 | . 1 . . . . Hackware . | . . . . . . Protection 3 | . 2 . . . 1 Artifact . | . . . . . . Weapon 11 | 2 1 3 . 3 2 Energy Gun 2 | . . 1 . . 1 Energy Cannon 2 | . 1 1 . . . Ballistic Gun 6 | 2 . 1 . 3 . Ballistic Cannon . | . . . . . . Launcher . | . . . . . . Special Weapon . | . . . . . . Impact Weapon 1 | . . . . . 1 Slashing Weapon . | . . . . . . Piercing Weapon . | . . . . . . Special Melee Weapon . | . . . . . . Unidentified Prototypes . | . . . . . . Parts Lost 5 | . 1 2 . 2 . Power 1 | . 1 . . . . Propulsion 2 | . . . . 2 . Utility . | . . . . . . Weapon 2 | . . 2 . . . Highest Loss Streak 2 | . 1 2 . 2 . To Critical Strikes 1 | . . 1 . . . Average Backups 8 | 2 5 9 9 9 9 Power . | . . . 1 1 . Propulsion . | . . . . . . Utility 2 | . 2 4 3 3 1 Weapon 4 | 1 2 4 5 5 6 Tool/Special . | . . . . . . Unused Backups 4 | . . . . . 4 Power 1 | . . . . . 1 Propulsion . | . . . . . . Utility . | . . . . . . Weapon 3 | . . . . . 3 Tool/Special . | . . . . . . Average Slot Usage (%) 96 | . 97 98 100 95 92 Engine 12 | . 12 14 14 14 10 Core 2 | . . . . . 7 Leg 24 | . 28 28 28 23 20 Device 8 | . . . 8 14 13 Storage 11 | . 11 14 14 14 9 Processor 3 | . 3 14 6 . . Protection 6 | . 11 . . . 13 Energy Gun 4 | . . 12 14 . 2 Energy Cannon 1 | . 7 4 . . . Ballistic Gun 17 | . 20 9 14 28 11 Impact Weapon 1 | . . . . . 3 Peak Build Rating 21 | 6 8 9 15 15 21 Average Rating 12 | 3 7 8 12 14 16 On Entrance 8 | . 6 8 9 15 15 Avg Prop Armor Cover (%) . | . . . . . . Naked Turns . | . . . . . . Heaviest Build 35 | 11 20 20 28 26 35 Greatest Support 35 | 20 20 20 20 20 35 Greatest Overweight (x) 8 | . . . 1 8 1 Average Overweight (x) . | . . . . 1 . Largest Inventory Capacity 10 | 8 10 10 10 10 10 Average Capacity 9 | 6 8 10 10 10 10 Most Carried 10 | 5 10 10 10 10 10 Average Carried 8 | 3 5 9 9 9 9 Final Capacity 10 | 8 10 10 10 10 10 Final Carried 10 | 2 10 10 9 10 10 Class Distribution -------------------- 66% | Mutant 33% | Scavenger-Mutant Dominant Class ---------------- Mutant | -10/Materials Mutant | -10/Mines Mutant | -10/Exiles Scavenger-Mutant | -9/Mines Scavenger-Mutant | -8/Materials Resources | -11 -10 -10 -10 -9 -8 ----------- Run | Yrd Mat Min Exi Min Mat Matter Collected 610 | 204 124 63 . 125 94 Remotely . | . . . . . . Salvage Created 614 | . 142 77 . 214 181 Parts 48 | . 7 10 . 18 13 Haulers Intercepted . | . . . . . . Recyclers Shooed . | . . . . . . Parts Field Recycled . | . . . . . . Retrieved Matter . | . . . . . . Parts Self-Destructed . | . . . . . . Prevented . | . . . . . . Parts Restored . | . . . . . . Kills | -11 -10 -10 -10 -9 -8 ------- Run | Yrd Mat Min Exi Min Mat Combat Hostiles Destroyed 21 | . 5 5 . 5 6 Guns 18 | . 4 3 . 5 6 Cannons 3 | . 1 2 . . . Classes Destroyed 3 | . 2 . . 1 . Swarmer 12 | . 3 5 . . 4 Grunt 8 | . 2 . . 4 2 Duelist 1 | . . . . 1 . Best Kill Streak 5 | . 3 5 . 3 4 Combat Bots Only 5 | . 3 5 . 3 4 Max Kills in Single Turn 1 | . 1 1 . 1 1 Gunslinging . | . . . . . . Exploded . | . . . . . . Melee . | . . . . . . Uniques/NPCs Destroyed . | . . . . . . Combat | -11 -10 -10 -10 -9 -8 -------- Run | Yrd Mat Min Exi Min Mat Hostile Shots Fired 195 | . 38 46 . 52 59 Missed 50 | . 9 6 . 16 19 Hits 145 | . 29 40 . 36 40 Melee 1 | . . . . 1 . Projectile 144 | . 29 40 . 35 40 Critical Strikes 7 | . . 1 . 5 1 Damage Taken 1568 | . 343 320 . 477 428 Core 221 | . 56 64 . 73 28 Absorbed by Shields . | . . . . . . Redirected to Shielding 26 | . 26 . . . . Core Remaining (%) 61 | 100 . . . 22 . Volleys Fired 103 | . 19 13 . 29 42 Largest 2 | . 2 2 . 2 2 Hottest 125 | . 80 125 . 40 50 Shots Fired 144 | . 38 23 . 34 49 Gun 116 | . 19 14 . 34 49 Cannon 28 | . 19 9 . . . Launcher . | . . . . . . Special . | . . . . . . Kinetic 77 | . 19 4 . 34 20 Thermal 67 | . 19 19 . . 29 Explosive . | . . . . . . Electromagnetic . | . . . . . . Robot Hit Streak 9 | . 4 8 . 9 5 Robot Miss Streak 4 | . 2 4 . 2 3 Penetration Max . | . . . . . . Secondary Targets 3 | . . 1 . 2 . Max Gunslinging Chain 1 | . . 1 . 1 . Shots Hit Robots 89 | . 24 12 . 27 26 Core Hits 44 | . 10 5 . 16 13 Critical Kills . | . . . . . . Critical Parts Destroyed . | . . . . . . Critical Strikes 1 | . . . . . 1 Burn 1 | . . . . . 1 Melee Attacks . | . . . . . . Impact . | . . . . . . Slashing . | . . . . . . Piercing . | . . . . . . Sneak Attacks . | . . . . . . Combat Hostiles . | . . . . . . Follow-up Attacks . | . . . . . . Damage Inflicted 1035 | . 310 195 . 217 313 Guns 775 | . 119 126 . 217 313 Cannons 260 | . 191 69 . . . Explosions . | . . . . . . Melee . | . . . . . . Ramming . | . . . . . . Kinetic 408 | . 119 8 . 217 64 Thermal 627 | . 191 187 . . 249 Explosive . | . . . . . . Electromagnetic . | . . . . . . Impact . | . . . . . . Slashing . | . . . . . . Piercing . | . . . . . . Highest Corruption 2 | . . . . . 2 Average Corruption 1 | . . . . . 1 Corruption Purged . | . . . . . . Corruption Blocked . | . . . . . . Effects 6 | . . . . . 6 Matter Fused 1 | . . . . . 1 Heat Flow Errors 2 | . . . . . 2 Data Loss (minor) 1 | . . . . . 1 Misfires 1 | . . . . . 1 Weapon Failures 1 | . . . . . 1 Overload Shots . | . . . . . . Overflow Damage . | . . . . . . Projectiles . | . . . . . . Explosions . | . . . . . . Melee . | . . . . . . Knockbacks . | . . . . . . Impact . | . . . . . . Kinetic . | . . . . . . Secondary . | . . . . . . Self-Inflicted Damage . | . . . . . . Shots . | . . . . . . Rammed . | . . . . . . Targets Rammed . | . . . . . . Kicked . | . . . . . . Crushed . | . . . . . . Highest Temperature 474 | . 255 474 . 46 252 Average Temperature 111 | . 102 218 . 19 89 Received Heat Transfer 594 | . 165 . . 348 81 Effects 5 | . . 5 . . . Interference 3 | . . 3 . . . Matter Decay 2 | . . 2 . . . Siege Activations . | . . . . . . Martial Activations . | . . . . . . Shielding Activations . | . . . . . . Robots Disrupted . | . . . . . . Combat Hostiles . | . . . . . . Robots Corrupted . | . . . . . . Combat Hostiles . | . . . . . . Parts Fried . | . . . . . . Impact Corruptions . | . . . . . . Robots Melted . | . . . . . . Combat Hostiles . | . . . . . . Parts Melted 2 | . 2 . . . . Heat Transferred 1665 | . 407 444 . . 814 Parts Sabotaged . | . . . . . . Parts Stolen . | . . . . . . Parts Stripped . | . . . . . . Power Chain Reactions . | . . . . . . Alert | -11 -10 -10 -10 -9 -8 ------- Run | Yrd Mat Min Exi Min Mat Maximum Alert Level . | . . . . . . Low Security (%) 100 | 100 100 100 . 100 100 Level 1 . | . . . . . . Level 2 . | . . . . . . Level 3 . | . . . . . . Level 4 . | . . . . . . Level 5 . | . . . . . . High Security . | . . . . . . Max Security . | . . . . . . Peak Influence 124 | . 109 124 . 90 80 Initial 34 | . . 34 . . . Average 27 | . 24 84 . 37 17 Influence Increases 529 | . 159 120 . 120 130 Destroy 0b10 Robot/C 420 | . 100 100 . 100 120 Destroy Leader 70 | . 20 20 . 20 10 Disable Machine 15 | . 15 . . . . Destroy Structure 24 | . 24 . . . . Influence Decreases 471 | . 70 115 94 120 72 Entered New Map 149 | . . 55 94 . . Time Decay 302 | . 70 40 . 120 72 Lost Part 20 | . . 20 . . . Squads Dispatched 1 | . . . . . 1 Investigation . | . . . . . . Extermination . | . . . . . . Reinforcement . | . . . . . . Assault . | . . . . . . Garrison 1 | . . . . . 1 Intercept . | . . . . . . Searches Triggered . | . . . . . . Construction Impeded . | . . . . . . Haulers Reinforced . | . . . . . . Active Scanning Responses . | . . . . . . Cargo Convoy Interrupts . | . . . . . . Stealth | -11 -10 -10 -10 -9 -8 --------- Run | Yrd Mat Min Exi Min Mat Distress Signals . | . . . . . . Communications Jammed . | . . . . . . Distress Signals . | . . . . . . Times Spotted 41 | . 7 6 . 6 22 Peak Tracking Total 8 | . 3 3 . 3 8 Tactical Retreats 2 | . . . . . 2 ECM-based Alert Blocks 4 | . . . . . 4 Traps | -11 -10 -10 -10 -9 -8 ------- Run | Yrd Mat Min Exi Min Mat Traps Triggered 2 | . . . . . 2 Indirectly . | . . . . . . Trap Hack Attempts . | . . . . . . Triggered . | . . . . . . Disarmed . | . . . . . . Reprogrammed . | . . . . . . Reused . | . . . . . . Traps Extracted . | . . . . . . Installed . | . . . . . . Triggered . | . . . . . . Machines | -11 -10 -10 -10 -9 -8 ---------- Run | Yrd Mat Min Exi Min Mat Machines Disabled 1 | . 1 . . . . Max in Single Turn 1 | . 1 . . . . Machines Repaired . | . . . . . . Machines Dismantled . | . . . . . . Machines Sabotaged . | . . . . . . Overloaded Fab Kills . | . . . . . . Hacking | -11 -10 -10 -10 -9 -8 --------- Run | Yrd Mat Min Exi Min Mat Machines Accessed 2 | . . . 1 . 1 Terminals . | . . . . . . Fabricators . | . . . . . . Repair Stations . | . . . . . . Recycling Units 1 | . . . . . 1 Scanalyzers . | . . . . . . Garrison Access . | . . . . . . Total Hacks 2 | . . . 1 . 1 Successful 1 | . . . 1 . . Failed 1 | . . . . . 1 Catastrophic . | . . . . . . Database Lockouts . | . . . . . . Manual 1 | . . . 1 . . Terminals . | . . . . . . Fabricators . | . . . . . . Repair Stations . | . . . . . . Recycling Units 1 | . . . . . 1 Scanalyzers . | . . . . . . Garrison Access . | . . . . . . Terminal Hacks 1 | . . . 1 . . Proto ID Catalog 1 | . . . 1 . . Fabricator Hacks . | . . . . . . Repair Station Hacks . | . . . . . . Recycling Unit Hacks . | . . . . . . Scanalyzer . | . . . . . . Garrison Access Hacks . | . . . . . . Unauthorized Hacks . | . . . . . . Terminals . | . . . . . . Fabricators . | . . . . . . Repair Stations . | . . . . . . Recycling Units . | . . . . . . Scanalyzers . | . . . . . . Garrison Access . | . . . . . . Data Cores Recovered . | . . . . . . Used . | . . . . . . Hacking Detections . | . . . . . . Full Trace Events . | . . . . . . Feedback Events . | . . . . . . Feedback Blocked . | . . . . . . Robot Schematics Acquired . | . . . . . . Robots Built . | . . . . . . Authchips . | . . . . . . Time . | . . . . . . Total Robot Build Rating . | . . . . . . Part Schematics Acquired . | . . . . . . Parts Built . | . . . . . . Authchips . | . . . . . . Time . | . . . . . . Total Part Build Rating . | . . . . . . Part Studies Acquired . | . . . . . . Parts Repaired . | . . . . . . Time . | . . . . . . Parts Recycled . | . . . . . . Recycled Matter . | . . . . . . Retrieved Matter . | . . . . . . Retrieved Components . | . . . . . . Parts Scanalyzed . | . . . . . . Part Schematics Acquired . | . . . . . . Parts Damaged . | . . . . . . Bothacking | -11 -10 -10 -10 -9 -8 ------------ Run | Yrd Mat Min Exi Min Mat Used RIF Installer . | . . . . . . Robots Hacked . | . . . . . . Non-combat . | . . . . . . Combat . | . . . . . . Robot Hacks Applied . | . . . . . . Relay Couplers Released . | . . . . . . Fabnet Peak Effective % . | . . . . . . Robots Rewired . | . . . . . . Allies Hacked . | . . . . . . Hacks Repelled . | . . . . . . Allies | -11 -10 -10 -10 -9 -8 -------- Run | Yrd Mat Min Exi Min Mat Total Allies . | . . . . . . Largest Group . | . . . . . . Highest-Rated Group . | . . . . . . Highest-Rated Ally . | . . . . . . Total Orders . | . . . . . . Ally Attacks . | . . . . . . Total Damage . | . . . . . . Kills . | . . . . . . Allies Corrupted . | . . . . . . Allies Melted . | . . . . . . Intel | -11 -10 -10 -10 -9 -8 ------- Run | Yrd Mat Min Exi Min Mat Active Infowar (turns) 439 | . . . 32 11 396 Cloaking 50 | . . . 32 11 7 ECM 395 | . . . . . 395 Robot Analysis Total . | . . . . . . Derelict Logs Recovered . | . . . . . . Drone Launches . | . . . . . . Drone Recoveries . | . . . . . . Exploration | -11 -10 -10 -10 -9 -8 ------------- Run | Yrd Mat Min Exi Min Mat Turns Passed 1565 | 65 333 81 340 280 466 Spaces Moved 806 | 53 209 34 223 106 181 Core 18 | 15 . . . 3 . Treads . | . . . . . . Legs 788 | 38 209 34 223 103 181 Wheels . | . . . . . . Hover . | . . . . . . Flight . | . . . . . . Fastest Speed 50 | 50 120 120 120 190 120 Average Speed 150 | 100 120 120 151 197 175 Slowest Speed 450 | 120 120 120 190 450 190 Overloaded Moves . | . . . . . . Propulsion Burnouts . | . . . . . . Robots Hopped . | . . . . . . Potential Cave-ins . | . . . . . . Cave-ins Triggered . | . . . . . . Exploration Rate (%) 21 | 3 31 10 41 24 21 Regions Visited 5 Branch Regions 3 Pre-discovered Areas . | . . . . . . Known Exits Taken 2 | . 1 1 . . . Unknown Exits Taken 3 | 1 . . 1 1 . Scrap Searched 1 | . . . . 1 . Spaces Dug . | . . . . . . Terrain Destroyed 22 | . 22 . . . . Melee . | . . . . . . Projectile . | . . . . . . AOE 22 | . 22 . . . . Terrain Rammed . | . . . . . . Walls Destroyed . | . . . . . . Machines Disabled . | . . . . . . Actions | -11 -10 -10 -10 -9 -8 --------- Run | Yrd Mat Min Exi Min Mat Total 1028 | 64 255 51 225 149 284 Wait 48 | . 10 . . . 38 Move 801 | 52 208 33 222 105 181 Hop . | . . . . . . Pick Up 32 | 6 11 2 1 6 6 Fast Attach 4 | 2 . . . . 2 Attach 13 | 4 2 2 . 2 3 Detach . | . . . . . . Swap 17 | . 4 1 1 4 7 Drop 10 | . 1 . 1 3 5 Fire 103 | . 19 13 . 29 42 Melee . | . . . . . . Ram . | . . . . . . Kick . | . . . . . . Crush . | . . . . . . Escape Stasis . | . . . . . . Rewire . | . . . . . . Trap . | . . . . . . Miscellaneous . | . . . . . . Route ------- -11/Scrapyard -10/Materials -10/Mines -10/Exiles -9/Mines -8/Materials History --------- Turn | Location | Event 5 | -11/Scrapyard | Discovered new exit (range 15) 66 | -11/Scrapyard | Entered Materials 327 | -10/Materials | Build established: Mutant 374 | -10/Materials | Discovered new exit (range 15) 398 | -10/Materials | Identified exit to Mines 399 | -10/Materials | Entered Mines 423 | -10/Mines | Met a Derelict bent on vengeance 474 | -10/Mines | Deemed a non-threat by the Exiles lab entrance 475 | -10/Mines | Discovered new exit (range 5) 479 | -10/Mines | Identified exit to Exiles 480 | -10/Mines | Entered Exiles 512 | -10/Exiles | Met 8R-AWN 532 | -10/Exiles | Met EX-HEX 567 | -10/Exiles | Met EX-BIN 580 | -10/Exiles | Aligned with FarCom system 581 | -10/Exiles | Given EX-Vault access code 612 | -10/Exiles | Opened EX-Vault 627 | -10/Exiles | Found Cloak of Protection 670 | -10/Exiles | Warned to stay clear of 0b10 Research branches 795 | -10/Exiles | Discovered new exit (range 14) 820 | -10/Exiles | Left Exiles lab with Cloak of Protection 820 | -10/Exiles | Entered Mines 823 | -9/Mines | Core integrity fell below 50% 1077 | -9/Mines | Discovered new exit (range 9) 1100 | -9/Mines | Entered Materials 1100 | -8/Materials | Evolved 4 slots: Power x1, Propulsion x1, Utility x2 1169 | -8/Materials | Build established: Scavenger-Mutant 1555 | -8/Materials | Garrison activated, responded to threat 1566 | -8/Materials | Self-destructed Last Messages --------------- K-01 Serf collects debris. System corrupted: Med. Laser failed to cycle. K-01 Serf collects debris. G-47 Trooper destroyed. R-06 Scavenger collects Aluminum Leg. Dropped Aluminum Leg. K-01 Serf collects debris. R-06 Scavenger collects Particle Gun. K-01 Serf collects debris. R-06 Scavenger collects Imp. Heat Sink. C-30 ARC bursts open, deploying its payload. H-55 Commando unfolds itself. R-06 Scavenger collects Aluminum Leg. System corrupted: Component data lost. H-55 Commando calls for garrison reinforcements. ALERT: Activating Garrison Access M001. Penetrated by Slug. Slug penetrates Wall. Acquired 57 matter. Slug penetrates Wall. Map ----- +----------------------------------------------------+ | ?????????????????????????????????????????????????? | | ?????????????????????????????????????????????????? | | ?????????????????????????????????????????????????? | | ?????????????????????????????????????????????????? | | ?????????????????????????????????????????????????? | | ?????????????????????????????????????????????????? | | ?????????????????????????????????????????????????? | | ?????????????????????????????????????????????????? | | ?????#####???????????????????????????????????????? | | ###### #???????????????????????????????????????? | | # #???????????????????????????????????????? | | # #??????????????????"????????????????????? | | """ + #????????????????? "????????????????????? | | """ # #????????????????? ""?????Y?????????????? | | """ # #????????????????? ????????????????????? | | # ########?????????? ????k???????????????? | | ###### # #?????????? """ ???????????????? | | ###### # "" #????????? g""" ???????????????? | | # # Y" #????????? """ ????????????????? | | + + "" #????????? ????????????????? | | # # #????????bg ?????????????????? | | # # ! #????????? """ #?????????????? | | ###### ################# """ %#?????????????? | | ##### #??????#| # """ #?????????????? | | #??????# """ # h #?????????????? | | " #??????# """ /@ !Y u Y???????? | | #??????# """ # % ####???????????????? | | ##### #??????# # #??????????????????? | | #######??????# #%*t###??????????????????? | | #?????######?#+######! #????????????????????? | | #?????? ?# #????# k #????????????????????? | | #?????? """" # #????# #????????????????????? | | #?????# """" # ###### #????????????????????? | | #?????# """" + r #????????????????????? | | #?????# # #????????????????????? | | #?????#! #" #????????????????????? | | #?????########T #????????????????????? | | #####??????# = [#" #????????????????????? | | #??????????# =*# !! #????????????????????? | | #??????????# """ # wg!! #????????????????????? | | #??????????# """=# ! #????????????????????? | | #??????????# """%# #????????????????????? | | #??????????# + #????????????????????? | | #??????????# [* # ##########????????????????????? | | #??????????#######/##????????????????????????????? | | #????????????# #????????????????????????????? | | #????????????# // #????????????????????????????? | | #????????????# / #????????????????????????????? | | #????????????# / #????????????????????????????? | | #????????????# #????????????????????????????? | +----------------------------------------------------+ Best States ------------- Heat Dissipation 31 Energy Generation 19 Energy Capacity 310 Matter Stores 295 Matter Capacity 300 Sight Range 16 Terrain Scan Density 10 ECM Strength 1 Cloak Strength 5 Armor Coverage 225 Propulsion Shielding 33 Utility Shielding 33 Evasion (%) 63 Item Schematics ----------------- None Robot Schematics ------------------ None Fabricated ------------ Nothing Repaired ---------- Nothing Studied --------- None Alien Tech Used ----------------- None Achievements -------------- None Challenges ------------ None Game ------ Seed GravjetTransmissionClaws Manual? 0 Play Time 00:15:51 Cumulative 5.0 hours Start 2026.02.06 @ 19:17:59 End 2026.02.10 @ 13:07:20 Sessions 3 Manual Loads 0 Difficulty Rogue Special Mode None Game No. 18 Rogue 18 Adventurer 0 Explorer 0 Win Type - Total 0 Types 0/0/0/0/0/0/0/0/0/0 Lore% 8 Gallery% 11 Achievement% 7 Wizard Run 0 Options --------- Layout 1 ASCII 1 Keyboard 0 Movement Mouse Keybinds 0 Fullscreen 1 Font 16/SmallcapsGlow Map View 55x38 Zoom Use 0% Tactical HUD 0 Map Filters NONE Filters NONE Steam 1 RUN: adbc3594-b0b5-4707-8892-e53cb1503e01